Cogmind - Beta 9.6 --- EXPLORER MODE // 2020.04.30 @ 03:16:05 // Winter2019/RPGLIKE Player: hemo Result: Smashed by cave-in Performance ------------- Evolutions (0) 0 Regions Visited (2) 400 Robots Destroyed (35) 175 Value Destroyed (645) 645 Prototype IDs (8) 160 Alien Tech Used (0) 0 Bonus (0) 0 TOTAL SCORE: 1380 Bonus ------- None Cogmind --------- Core Integrity 0/600 Matter 240/300 Energy 100/100 System Corruption 3% Temperature Cool (0) Movement Treading (160) Location -10/Mines Parts ------- > --- POWER (1) -------- (None) > --- PROPULSION (1) --- Light Treads > --- UTILITY (4) ------ Experimental Sensor Array Medium Armor Plating Improved Light Armor Plating > --- WEAPON (1) ------- Light Cannon > --- INVENTORY (1) ---- Protomatter-31 Peak State ------------ > --- POWER ------------ Light Nuclear Core > --- PROPULSION ------- Light Treads > --- UTILITY ---------- Experimental Sensor Array Medium Armor Plating Medium Armor Plating Improved Light Armor Plating > --- WEAPON ----------- Light Cannon > --- INVENTORY -------- Protomatter [Rating: 18] Favorites ----------- Power Ion Engine Engine Ion Engine Power Core Light Nuclear Core Propulsion Light Treads Treads Light Treads Utility Medium Armor Plating Device Heat Sink Protection Medium Armor Plating Weapon Medium Laser Energy Gun Medium Laser Ballistic Cannon Light Cannon Build | -11 -10 -10 ------- Run | Scr Mat Min Slots Evolved 3 | 2 . 1 Power . | . . . Propulsion . | . . . Utility 3 | 2 . 1 Weapon . | . . . Parts Attached 20 | 4 13 3 Power 3 | 1 2 . Engine 2 | 1 1 . Core 1 | . 1 . Reactor . | . . . Propulsion 2 | 1 1 . Treads 2 | 1 1 . Leg . | . . . Wheel . | . . . Hover . | . . . Flight . | . . . Utility 11 | 1 7 3 Device 2 | . 1 1 Storage . | . . . Processor . | . . . Hackware . | . . . Protection 9 | 1 6 2 Artifact . | . . . Weapon 4 | 1 3 . Energy Gun 3 | 1 2 . Energy Cannon . | . . . Ballistic Gun . | . . . Ballistic Cannon 1 | . 1 . Launcher . | . . . Special Weapon . | . . . Impact Weapon . | . . . Slashing Weapon . | . . . Piercing Weapon . | . . . Special Melee Weapon . | . . . Unidentified Prototypes 1 | . . 1 Parts Lost 3 | . 1 2 Power 1 | . . 1 Propulsion . | . . . Utility 2 | . 1 1 Weapon . | . . . Highest Loss Streak 2 | . 1 2 Average Slot Usage (%) 96 | . 94 100 Engine 9 | . 13 . Core 6 | . 2 14 Treads 15 | . 15 14 Device 6 | . 5 9 Protection 40 | . 38 44 Energy Gun 8 | . 11 . Ballistic Cannon 7 | . 3 14 Naked Turns 5 | . 5 . Heaviest Build 30 | 10 29 30 Greatest Support 20 | 20 20 20 Greatest Overweight (x) 2 | 1 2 1 Average Overweight (x) . | . . 1 Largest Inventory Capacity 1 | . 1 1 Average Capacity . | . . 1 Most Carried 1 | . 1 1 Average Carried . | . . 1 Final Capacity 1 | . 1 1 Final Carried 1 | . 1 1 Class Distribution -------------------- 100% | Hacker-Mutant Dominant Class ---------------- Hacker-Mutant | -10/Materials Hacker-Mutant | -10/Mines Resources | -11 -10 -10 ----------- Run | Scr Mat Min Matter Collected 547 | 204 215 128 Remotely . | . . . Salvage Created 665 | . 640 25 Parts 51 | . 48 3 Haulers Intercepted 2 | . 2 . Recyclers Shooed 2 | . 2 . Parts Field Recycled . | . . . Retrieved Matter . | . . . Parts Self-Destructed . | . . . Prevented . | . . . Kills | -11 -10 -10 ------- Run | Scr Mat Min Combat Hostiles Destroyed 26 | . 18 8 Melee 1 | . . 1 Guns 13 | . 13 . Cannons 9 | . 3 6 AOE 1 | . . 1 Classes Destroyed 8 | . 6 2 Worker 2 | . 2 . Builder 1 | . 1 . Tunneler 1 | . . 1 Hauler 2 | . 2 . Watcher 3 | . 3 . Swarmer 6 | . 4 2 Grunt 14 | . 14 . Assembled 6 | . . 6 Best Kill Streak 6 | . 4 6 Combat Bots Only 5 | . 4 5 Max Kills in Single Turn 1 | . 1 1 Gunslinging . | . . . Exploded 1 | . . 1 Melee 1 | . . 1 Uniques/NPCs Destroyed . | . . . Combat | -11 -10 -10 -------- Run | Scr Mat Min Damage Taken 1815 | . 525 1290 Core 1140 | . 309 831 Absorbed by Shields . | . . . Redirected to Core 802 | . 237 565 Core Remaining (%) 100 | 100 . . Volleys Fired 166 | . 122 44 Largest 1 | . 1 1 Hottest 50 | . 50 35 Shots Fired 166 | . 122 44 Gun 108 | . 108 . Cannon 58 | . 14 44 Launcher . | . . . Special . | . . . Kinetic 58 | . 14 44 Thermal 108 | . 108 . Explosive . | . . . Electromagnetic . | . . . Robot Hit Streak 26 | . 26 18 Robot Miss Streak 3 | . 3 3 Penetration Max . | . . . Secondary Targets . | . . . Shots Hit Robots 133 | . 109 24 Core Hits 51 | . 38 13 Critical Hits 1 | . 1 . Critical Kills . | . . . Critical Parts Destroyed 1 | . 1 . Melee Attacks . | . . . Impact . | . . . Slashing . | . . . Piercing . | . . . Sneak Attacks . | . . . Combat Hostiles . | . . . Follow-up Attacks . | . . . Damage Inflicted 2022 | . 1517 505 Guns 1293 | . 1293 . Cannons 662 | . 218 444 Explosions 56 | . . 56 Melee . | . . . Ramming 11 | . 6 5 Kinetic 662 | . 218 444 Thermal 1349 | . 1293 56 Explosive . | . . . Electromagnetic . | . . . Impact . | . . . Slashing . | . . . Piercing . | . . . Highest Corruption . | . . . Average Corruption . | . . . Corruption Purged . | . . . Overload Shots . | . . . Overflow Damage 15 | . . 15 Projectiles 15 | . . 15 Explosions . | . . . Melee . | . . . Knockbacks 10 | . 1 9 Impact . | . . . Kinetic 9 | . 1 8 Secondary 1 | . . 1 Self-Inflicted Damage 18 | . . 18 Shots 1 | . . 1 Rammed 3 | . 2 1 Targets Rammed 4 | . 2 2 Kicked . | . . . Crushed 1 | . . 1 Highest Temperature 339 | . 339 . Average Temperature 114 | . 114 . Received Heat Transfer 456 | . 456 . Siege Activations . | . . . Robots Corrupted . | . . . Combat Hostiles . | . . . Parts Fried . | . . . Impact Corruptions . | . . . Robots Melted 2 | . 2 . Combat Hostiles 2 | . 2 . Parts Melted 5 | . 5 . Heat Transferred 3602 | . 3552 50 Parts Sabotaged . | . . . Parts Stolen . | . . . Parts Stripped . | . . . Power Chain Reactions . | . . . Missiles Intercepted . | . . . Alert | -11 -10 -10 ------- Run | Scr Mat Min Peak Influence 282 | . 282 67 Average Influence 85 | . 113 35 Maximum Alert Level 1 | . 1 . Low Security (%) 82 | 100 74 100 Level 1 17 | . 25 . Level 2 . | . . . Level 3 . | . . . Level 4 . | . . . Level 5 . | . . . High Security . | . . . Max Security . | . . . Squads Dispatched 8 | . 7 1 Investigation 8 | . 7 1 Extermination . | . . . Reinforcement . | . . . Assault . | . . . Garrison . | . . . Intercept . | . . . Construction Impeded . | . . . Haulers Reinforced . | . . . Stealth | -11 -10 -10 --------- Run | Scr Mat Min Distress Signals . | . . . Communications Jammed . | . . . Distress Signals . | . . . Times Spotted 39 | . 30 9 Peak Tracking Total 8 | . 8 7 Tactical Retreats 5 | . 3 2 Traps | -11 -10 -10 ------- Run | Scr Mat Min Traps Triggered 4 | . 4 . Indirectly . | . . . Trap Hack Attempts . | . . . Triggered . | . . . Disarmed . | . . . Reprogrammed . | . . . Reused . | . . . Traps Extracted . | . . . Installed . | . . . Triggered . | . . . Machines | -11 -10 -10 ---------- Run | Scr Mat Min Machines Disabled 3 | . 1 2 Max in Single Turn 2 | . 1 2 Machines Sabotaged . | . . . Garrisons Compromised . | . . . Overloaded Fab Kills . | . . . Fab Network Shutdowns . | . . . Hacking | -11 -10 -10 --------- Run | Scr Mat Min Machines Accessed 11 | . 10 1 Terminals 9 | . 8 1 Fabricators . | . . . Repair Stations . | . . . Recycling Units 2 | . 2 . Scanalyzers . | . . . Garrison Access . | . . . Total Hacks 52 | . 47 5 Successful 38 | . 35 3 Failed 14 | . 12 2 Catastrophic . | . . . Database Lockouts . | . . . Manual 46 | . 41 5 Terminals 44 | . 39 5 Fabricators . | . . . Repair Stations . | . . . Recycling Units 8 | . 8 . Scanalyzers . | . . . Garrison Access . | . . . Terminal Hacks 24 | . 21 3 Part Schematic 1 | . 1 . Robot Analysis 11 | . 11 . Prototype ID Bank 12 | . 9 3 Fabricator Hacks . | . . . Repair Station Hacks . | . . . Recycling Unit Hacks 2 | . 2 . Retrieve Components 2 | . 2 . Scanalyzer . | . . . Garrison Access Hacks . | . . . Unauthorized Hacks 12 | . 12 . Terminals 9 | . 9 . Botnet 8 | . 8 . Disrupt 1 | . 1 . Fabricators . | . . . Repair Stations . | . . . Recycling Units 3 | . 3 . Mask 1 | . 1 . Tunnel 2 | . 2 . Scanalyzers . | . . . Garrison Access . | . . . Data Cores Recovered . | . . . Used . | . . . Hacking Detections 11 | . 10 1 Full Trace Events 9 | . 8 1 Feedback Events . | . . . Feedback Blocked . | . . . Robot Schematics Acquired . | . . . Robots Built . | . . . Matter . | . . . Time . | . . . Total Robot Build Rating . | . . . Part Schematics Acquired 1 | . 1 . Parts Built . | . . . Matter . | . . . Time . | . . . Total Part Build Rating . | . . . Parts Repaired . | . . . Time . | . . . Parts Recycled . | . . . Recycled Matter . | . . . Retrieved Matter . | . . . Retrieved Components 19 | . 19 . Parts Scanalyzed . | . . . Part Schematics Acquired . | . . . Parts Damaged . | . . . Bothacking | -11 -10 -10 ------------ Run | Scr Mat Min Used RIF Installer . | . . . Robots Hacked . | . . . Non-combat . | . . . Combat . | . . . Robot Hacks Applied . | . . . Relay Couplers Released . | . . . Robots Rewired . | . . . Allies Hacked . | . . . Hacks Repelled . | . . . Allies | -11 -10 -10 -------- Run | Scr Mat Min Total Allies . | . . . Largest Group . | . . . Highest-Rated Group . | . . . Highest-Rated Ally . | . . . Total Orders . | . . . Ally Attacks . | . . . Total Damage . | . . . Kills . | . . . Allies Corrupted . | . . . Allies Melted . | . . . Intel | -11 -10 -10 ------- Run | Scr Mat Min Robot Analysis Total 11 | . 11 . Derelict Logs Recovered . | . . . Drone Launches . | . . . Drone Recoveries . | . . . Exploration | -11 -10 -10 ------------- Run | Scr Mat Min Turns Passed 2043 | 57 1343 643 Spaces Moved 953 | 36 630 287 Core 17 | 7 10 . Treads 936 | 29 620 287 Legs . | . . . Wheels . | . . . Hover . | . . . Flight . | . . . Fastest Speed 50 | 50 50 180 Average Speed 168 | 145 165 180 Slowest Speed 180 | 160 180 180 Overloaded Moves . | . . . Propulsion Burnouts . | . . . Robots Hopped . | . . . Cave-ins Triggered 2 | . . 2 Exploration Rate (%) 51 | 4 95 55 Regions Visited 2 Branch Regions 1 Pre-discovered Areas 3 | . 2 1 Known Exits Taken 2 | 1 1 . Unknown Exits Taken . | . . . Scrap Searched 1 | . . 1 Spaces Dug 2 | . . 2 Terrain Destroyed 24 | . . 24 Melee . | . . . Projectile 2 | . . 2 AOE 22 | . . 22 Actions | -11 -10 -10 --------- Run | Scr Mat Min Total 1213 | 39 805 369 Wait 30 | . 9 21 Move 951 | 35 629 287 Hop . | . . . Pick Up 1 | . 1 . Fast Attach 19 | 4 13 2 Attach . | . . . Detach . | . . . Swap 1 | . . 1 Drop 7 | . 5 2 Fire 166 | . 122 44 Melee . | . . . Ram . | . . . Kick . | . . . Crush 4 | . 2 2 Escape Stasis . | . . . Rewire . | . . . Trap . | . . . Miscellaneous 34 | . 24 10 Route ------- -11/Scrapyard -10/Materials (discovered 5 exits: *Mat x3 / *Min x2) -10/Mines (discovered 1 exit: *Mat) History --------- Turn | Location | Event 1 | -11/Scrapyard | Upgraded with Utility slot (x2) 8 | -11/Scrapyard | Identified exit to Materials 8 | -11/Scrapyard | Discovered exit to Materials (range 15) 58 | -11/Scrapyard | Entered Materials 174 | -10/Materials | Identified exit to Mines 174 | -10/Materials | Discovered exit to Mines (range 16) 311 | -10/Materials | Build established: Hacker-Mutant 481 | -10/Materials | Reached level 2 550 | -10/Materials | Identified exit to Materials 550 | -10/Materials | Discovered exit to Materials (range 13) 822 | -10/Materials | Discovered exit to Materials (range 4) 1076 | -10/Materials | Discovered exit to Materials (range 13) 1241 | -10/Materials | Discovered exit to Mines (range 15) 1401 | -10/Materials | Entered Mines 1403 | -10/Mines | Reached level 3 1495 | -10/Mines | Met a Derelict bent on vengeance 1625 | -10/Mines | Found a damaged Exp. Sensor Array with a note attached 1629 | -10/Mines | Found Prototype Device 1629 | -10/Mines | Identified Exp. Sensor Array 1631 | -10/Mines | Upgraded with Utility slot (x1) 1659 | -10/Mines | Learned location of Storage (-8) 1797 | -10/Mines | Assembled infested the area 1832 | -10/Mines | Discovered exit to Materials (range 12) 1899 | -10/Mines | Core integrity fell below 50% 2002 | -10/Mines | Crushed by falling debris 2045 | -10/Mines | Crushed by falling debris 2045 | -10/Mines | Smashed by cave-in Last Messages --------------- 01906_ K-01 Serf collects debris. 01913_ Used Protomatter to restore core integrity (+39, depleted) 01914_ K-01 Serf collects debris. 01921_ Used Protomatter to restore core integrity (+18, depleted) 01922_ K-01 Serf collects debris. 01927_ Acquired 21 matter. 01929_ Acquired 28 matter. 01956_ Acquired 19 matter. 01956_ as-56493 sneak attacks. 01967_ as-56493 destroyed. 01969_ Acquired 8 matter. 01984_ Dropped Med. Armor Plating. 02002_ The unstable cave ceiling collapses. 02002_ Crushed by falling debris. 02032_ The unstable cave ceiling collapses. 02045_ Crushed by falling debris. 02045_ Med. Armor Plating destroyed. 02045_ System corrupted by crushing effect (+2). 02045_ Lgt. Nuclear Core destroyed. 02045_ System corrupted by crushing effect (+1). Map ----- +----------------------------------------------------+ | ????? ????????????????# ########## | | ?????? ????????????????## | | ??????? ?????????????????## | | ???????? ??????????????????# ######## | | ????????? #??????????????????## ##??????## | | ?????????? #???????????????????# #????????# | | ??????????? #???????????????????# #????????# | | ????????????# #?????#####?????????# #???????## | | ????????????# ##???## ##????????# #??????## | | ???????????## ##### ##???????# #????### | | ??????????## ! ? #??????## #????# # | | ????# #### % ? %##????## #????# ## | | ????# %<== ## ## * ##???# #????# ###? | | ????# *%!*### ### ##?## #????# #??? | | ????#########% ##?# #?## ### ##???# #??? | | ????????????#= #??######??# [ ##??# #??? | | #############=*#??????????# =%= #### #### | | # % % %! #??????????## = % !%= | | # $ ?% * =#???###?????#### [! | | # # #######=###??## ####?????## ### | | ???????????# #????## ##?????## ##?? | | ???????????#|########### #??????# ##?? | | ???????????#* !! % !!%# ##????# %! #?? | | ???????????###########=#!##????# ### [ #?? | | ?????????????????????#%## #????### #?## #### | | ?????????????????????!%=#@#??????# #??#### ### | | ?????????????????????%!!###??????# ####### #?# ## | | ?????????????????????=%=#??????# #?# ## | | ??????????????????????! ?????????######### #?# ## | | ???????????????????? ##????????????????# ### ## | | ???????????????????? #?????????????????# % | | ???????????????????? ??????????????????# ##### | | ???????????????????? ??????????????????# #???## | | ??????????????????? "??????????????????# #????# | | ??????????????????? ??????????????????# #????? | | ??????????????????? ??????????????????# #????? | | ???????????????????# #?????????????????? #????? | | ????????????????????##???????????????????####????? | | ?????????????????????????????????????????????????? | | ?????????????????????????????????????????????????? | | ?????????????????????????????????????????????????? | | ?????????????????????????????????????????????????? | | ?????????????????????????????????????????????????? | | ?????????????????????????????????????????????????? | | ?????????????????????????????????????????????????? | | ?????????????????????????????????????????????????? | | ?????????????????????????????????????????????????? | | ?????????????????????????????????????????????????? | | ?????????????????????????????????????????????????? | | ?????????????????????????????????????????????????? | +----------------------------------------------------+ Best States ------------- Heat Dissipation 59 Energy Generation 14 Energy Capacity 250 Matter Stores 300 Matter Capacity 300 Sight Range 16 Robot Scan Range 30 Terrain Scan Density 10 Armor Coverage 675 Resistance: KI 55 Resistance: TH 55 Resistance: EX 55 Resistance: EM 35 Resistance: I 35 Resistance: S 35 Resistance: P 35 Propulsion Shielding 33 Weapon Shielding 33 Evasion (%) 50 Recoil Reduction 1 Offensive Hacking 20 Item Schematics ----------------- ECM Suite | -10/Materials | Hacked Robot Schematics ------------------ None Fabricated ------------ Nothing Alien Tech Used ----------------- None Achievements -------------- None Challenges ------------ None RPGLIKE | -11 -10 -10 --------- Run | Scr Mat Min Levels Raised 2 | . 1 1 XP Earned 9525 | 6000 2775 750 XP Spent 7470 | 1300 2370 3800 Upgrades 20 | 2 9 9 Utility Slot 3 | 2 . 1 Heat Dissipation 4 | . 4 . Inventory Capacity 1 | . 1 . KI Resistance % 4 | . 4 . TH Resistance % 4 | . . 4 EX Resistance % 4 | . . 4 Protomatter Created 282 | . 282 . Integrity Restored 655 | . 448 207 Core 493 | . 286 207 Parts 162 | . 162 . Protomatter Decayed 246 | . 98 148 Game ------ Seed FieldNodeSplitter Manual? 1 Play Time 00:17:37 Cumulative 331.0 hours Start 2020.04.30 @ 02:58:51 End 2020.04.30 @ 03:16:05 Sessions 1 Manual Loads 0 Difficulty Explorer Special Mode Winter2019/RPGLIKE Game No. 37 Rogue 1 Adventurer 3 Explorer 33 Win Type - Total 17 Types 17/0/0/0/0/0/0 Lore% 71 Gallery% 86 Achievement% 85 Wizard Run 0 Options --------- ASCII 0 Keyboard 1 Movement Vi Keybinds 0 Fullscreen 2 Font 24/Terminus Map View 76x50 Tactical HUD 1 Map Filters NONE Filters NONE Steam 1 RUN: c6e9894f-b9f9-4a86-8e6f-f18b105ed120